fUSD/lending_fUSD_20251120
["ID","MTS","AMOUNT","RATE_DAILY","PERIOD"]
[394480330,1763618313277,180.824232,0.0004203,120]
[394480331,1763618313397,151.0,0.0004203,120]
[394480332,1763618313444,151.0,0.0004203,120]
[394480334,1763618313494,251.1104404,0.0004203,120]
[394480335,1763618313543,254.946458,0.0004203,30]
[394480337,1763618313756,151.0,0.0004203,120]
[394480338,1763618313813,180.824232,0.0004203,120]
[394480339,1763618313866,254.946458,0.0004203,30]
[394480341,1763618314030,151.0,0.0004203,120]
[394480342,1763618314129,180.824232,0.0004203,120]
[394480344,1763618314181,254.946458,0.0004203,30]
[394480345,1763618314322,151.0,0.0004203,120]
[394480347,1763618314496,254.946458,0.0004203,30]
[394480348,1763618314543,180.824232,0.0004203,120]
[394480349,1763618314595,151.0,0.0004203,120]
[394480351,1763618314833,180.824232,0.0004203,120]
[394480352,1763618314883,254.946458,0.0004203,30]
[394480354,1763618314936,151.0,0.0004203,120]
[394480355,1763618314982,270.550095,0.0004203,120]
[394480356,1763618315152,180.824232,0.0004203,120]
[394480357,1763618315201,254.946458,0.0004203,30]
[394480358,1763618315255,151.0,0.0004203,120]
[394480359,1763618315462,180.824232,0.0004203,120]
[394480360,1763618315514,254.946458,0.0004203,30]
[394480362,1763618315561,161.376165,0.0004203,120]
[394480363,1763618315752,180.824232,0.0004203,120]
[394480364,1763618315820,254.946458,0.0004203,30]
[394480367,1763618316060,180.824225,0.0004203,120]
[394480368,1763618316135,254.946458,0.0004203,30]
[394480370,1763618316466,254.946458,0.0004203,30]
[394480371,1763618316598,448.11927132,0.0004203,120]
[394480373,1763618316800,254.946458,0.0004203,30]
[394480375,1763618316853,166.05965145,0.0004203,120]
[394480377,1763618317096,254.946458,0.0004203,30]
[394480379,1763618317410,254.946458,0.0004203,30]
[394480381,1763618317710,254.946458,0.0004203,30]
[394480383,1763618318036,254.946458,0.0004203,30]
[394480385,1763618318355,254.946458,0.0004203,30]
[394480388,1763618318818,254.946448,0.0004203,30]
[394480389,1763618318918,350.06541765,0.0004203,120]
[394480391,1763618319169,414.06506655,0.0004203,120]
[394480396,1763618321785,444.80263139,0.0004203,120]
[394480397,1763618323817,219.44372391,0.0004203,120]
[394480398,1763618326437,377.86327944,0.0004203,120]
[394480399,1763618327441,437.39505554,0.0004203,120]
[394480400,1763618328439,250.1130318,0.0004203,120]
[394480401,1763618330274,154.923355,0.0004203,120]
[394480402,1763618330817,500.0,0.0004203,120]
[394480403,1763618331062,156.46,0.0004203,120]
[394480404,1763618332867,470.48503644,0.0004203,120]
[394480405,1763618334718,500.0,0.0004203,120]
[394480406,1763618334766,266.7971291,0.0004203,120]
[394480407,1763618334947,325.79173665,0.0004203,120]
[394480408,1763618338811,200.0,0.0004203,120]
[394480409,1763618344462,150.88751324,0.0004203,120]
[394480410,1763618345243,151.0,0.0004203,120]
[394480411,1763618345538,151.0,0.0004203,120]
[394480412,1763618345723,500.0,0.0004203,120]
[394480413,1763618345867,151.0,0.0004203,120]
[394480414,1763618345963,179.46818114,0.0004203,120]
[394480415,1763618346187,151.0,0.0004203,120]
[394480416,1763618346317,237.3438387,0.0004203,120]
[394480417,1763618346477,151.0,0.0004203,120]
[394480418,1763618346781,151.0,0.0004203,120]
[394480419,1763618347072,151.0,0.0004203,120]
[394480420,1763618347364,151.0,0.0004203,120]
[394480421,1763618347713,151.0,0.0004203,120]
[394480422,1763618348040,151.0,0.0004203,120]
[394480423,1763618348087,391.78607027,0.0004203,120]
[394480424,1763618348136,151.0,0.0004203,120]
[394480425,1763618348329,151.0,0.0004203,120]
[394480426,1763618348401,151.0,0.0004203,120]
[394480427,1763618348649,151.0,0.0004203,120]
[394480428,1763618348707,283.742782,0.0004203,120]
[394480429,1763618349099,273.841244,0.0004203,120]
[394480430,1763618351989,151.0,0.0004203,120]
[394480431,1763618352037,500.0,0.0004203,120]
[394480432,1763618352083,151.0,0.0004203,120]
[394480433,1763618352188,369.69935308,0.0004203,120]
[394480434,1763618352328,151.0,0.0004203,120]
[394480435,1763618352635,262.261099,0.0004203,120]
[394480436,1763618356229,400.0,0.0004203,120]
[394480437,1763618356778,172.64898781,0.0004203,120]
[394480438,1763618359327,240.619454,0.0004203,120]
[394480439,1763618359857,467.61624044,0.0004203,120]
[394480440,1763618361060,151.0,0.0004203,120]
[394480441,1763618361391,151.0,0.0004203,120]
[394480442,1763618361687,151.0,0.0004203,120]
[394480443,1763618362052,151.0,0.0004203,120]
[394480444,1763618362371,151.0,0.0004203,120]
[394480445,1763618362708,217.70469,0.0004203,120]
[394480448,1763618363552,259.49681164,0.0004203,120]
[394480449,1763618365257,174.892637,0.0004203,120]
[394480450,1763618365595,174.892637,0.0004203,120]
[394480451,1763618365872,174.892637,0.0004203,120]
[394480452,1763618366468,174.892637,0.0004203,120]
[394480453,1763618366900,174.892637,0.0004203,120]
[394480454,1763618366998,345.07720029,0.0004203,120]
[394480455,1763618367083,500.0,0.0004203,120]
[394480456,1763618367187,174.892637,0.0004203,120]
[394480457,1763618367341,295.91193442,0.0004203,120]
[394480458,1763618367470,174.892637,0.0004203,120]
[394480459,1763618367815,174.892637,0.0004203,120]
[394480460,1763618368131,174.892637,0.0004203,120]
[394480461,1763618368434,174.892637,0.0004203,120]
[394480462,1763618368751,174.892637,0.0004203,120]
[394480463,1763618369067,174.892637,0.0004203,120]
[394480464,1763618369125,203.46246398,0.0004203,120]
[394480465,1763618369489,174.892637,0.0004203,120]
[394480466,1763618369932,174.892637,0.0004203,120]
[394480467,1763618370363,174.892637,0.0004203,120]
[394480468,1763618370461,253.995663,0.0004203,120]
[394480469,1763618370685,174.892637,0.0004203,120]
[394480470,1763618370756,253.995663,0.0004203,120]
[394480471,1763618370980,174.892637,0.0004203,120]
[394480472,1763618371038,253.995663,0.0004203,120]
[394480473,1763618371345,174.892637,0.0004203,120]
[394480474,1763618371639,253.995663,0.0004203,120]
[394480475,1763618371904,174.892637,0.0004203,120]
[394480476,1763618371957,253.995663,0.0004203,120]
[394480477,1763618372120,174.892639,0.0004203,120]
[394480478,1763618372214,253.995663,0.0004203,120]
[394480479,1763618372502,253.995663,0.0004203,120]
[394480480,1763618372608,151.0,0.0004203,120]
[394480481,1763618372648,556.232105,0.0004203,120]
[394480482,1763618372786,253.995663,0.0004203,120]
[394480483,1763618372894,151.0,0.0004203,120]
[394480484,1763618373046,556.232105,0.0004203,120]
[394480485,1763618373084,253.995663,0.0004203,120]
[394480486,1763618373191,151.0,0.0004203,120]
[394480487,1763618373331,556.232105,0.0004203,120]
[394480488,1763618373375,253.995663,0.0004203,120]
[394480489,1763618373537,151.0,0.0004203,120]
[394480490,1763618373613,556.232105,0.0004203,120]
[394480491,1763618373657,253.995663,0.0004203,120]
[394480492,1763618373826,175.651798,0.0004203,120]
[394480493,1763618373921,556.232105,0.0004203,120]
[394480494,1763618373971,253.995663,0.0004203,120]
[394480495,1763618374231,556.232105,0.0004203,120]
[394480496,1763618374283,253.995663,0.0004203,120]
[394480497,1763618374516,556.232105,0.0004203,120]
[394480498,1763618374558,253.995663,0.0004203,120]
[394480499,1763618374845,253.995663,0.0004203,120]
[394480500,1763618375133,253.995663,0.0004203,120]
[394480501,1763618375182,556.232105,0.0004203,120]
[394480502,1763618375412,253.995663,0.0004203,120]
[394480503,1763618375461,556.232105,0.0004203,120]
[394480504,1763618375702,253.995663,0.0004203,120]
[394480505,1763618375748,556.232105,0.0004203,120]
[394480506,1763618376019,556.232105,0.0004203,120]
[394480507,1763618376066,253.995663,0.0004203,120]
[394480508,1763618376338,556.232105,0.0004203,120]
[394480509,1763618376510,253.995664,0.0004203,120]
[394480510,1763618376557,500.0,0.0004203,120]
[394480511,1763618376620,556.232105,0.0004203,120]
[394480512,1763618376826,186.16191442,0.0004203,120]
[394480513,1763618376913,556.232105,0.0004203,120]
[394480514,1763618377205,556.232105,0.0004203,120]
[394480515,1763618377551,378.55434863,0.0004203,120]
[394480516,1763618377605,556.232105,0.0004203,120]
[394480517,1763618377897,556.232105,0.0004203,120]
[394480518,1763618378191,556.232105,0.0004203,120]
[394480519,1763618378423,241.70591,0.0004203,30]
[394480520,1763618378479,556.232105,0.0004203,120]
[394480521,1763618378793,556.232108,0.0004203,120]
[394480522,1763618378900,255.602712,0.0004203,120]
[394480523,1763618379407,382.44331407,0.0004203,120]
[394480524,1763618381331,284.37130129,0.0004203,120]
[394480525,1763618381843,364.5341368,0.0004203,120]
[394480526,1763618382026,151.0,0.0004203,120]
[394480527,1763618382339,151.0,0.0004203,120]
[394480528,1763618382672,151.0,0.0004203,120]
[394480529,1763618383019,151.0,0.0004203,120]
[394480530,1763618383318,151.0,0.0004203,120]
[394480531,1763618383368,260.74321458,0.0004203,120]
[394480532,1763618383603,151.0,0.0004203,120]
[394480533,1763618383885,151.0,0.0004203,120]
[394480534,1763618384060,154.729359,0.0004203,120]
[394480535,1763618384161,151.0,0.0004203,120]
[394480536,1763618384438,286.551416,0.0004203,120]
[394480537,1763618384919,268.19466508,0.0004203,120]
[394480538,1763618385230,171.07403449,0.0004203,120]
[394480539,1763618388708,435.00508365,0.0004203,120]
[394480540,1763618388761,151.0,0.0004203,120]
[394480541,1763618389086,151.0,0.0004203,120]
[394480542,1763618389419,153.633799,0.0004203,120]
[394480543,1763618389683,363.79549484,0.0004203,120]
[394480544,1763618394577,4850.28,0.00015969,2]
[394480545,1763618396326,201.60678123,0.0004203,120]
[394480547,1763618399371,451.45521323,0.00042048,120]
[394480548,1763618401011,242.40120228,0.00042048,120]
[394480549,1763618401246,154.06196824,0.00042048,120]
[394480550,1763618401791,417.56097499,0.00042048,120]
[394480553,1763618403201,166.72,0.00042048,120]
[394480563,1763618405461,151.0,0.00042048,120]
[394480564,1763618405962,151.0,0.00042048,120]
[394480565,1763618406070,151.0,0.00042048,120]
[394480567,1763618406412,151.0,0.00042048,120]
[394480568,1763618406462,294.26733608,0.00042048,120]
[394480569,1763618406515,151.0,0.00042048,120]
[394480570,1763618406744,151.0,0.00042048,120]
[394480571,1763618406794,151.0,0.00042048,120]
[394480573,1763618407118,163.376956,0.00042048,120]
[394480575,1763618407907,321.57686369,0.00042048,120]
[394480576,1763618407955,151.0,0.00042048,120]
[394480577,1763618408004,309.85217854,0.00042048,120]
[394480580,1763618408227,151.0,0.00042048,120]
[394480581,1763618408584,151.0,0.00042048,120]
[394480582,1763618408635,152.891453,0.00042048,120]
[394480585,1763618408872,151.0,0.00042048,120]
[394480587,1763618409188,151.0,0.00042048,120]
[394480588,1763618409239,151.0,0.00042048,120]
[394480590,1763618409465,151.0,0.00042048,120]
[394480593,1763618409560,151.0,0.00042048,120]
[394480594,1763618409766,296.03841899,0.00042048,120]
[394480595,1763618409812,151.0,0.00042048,120]
[394480596,1763618409870,500.0,0.00042048,120]
[394480598,1763618410127,292.18499591,0.00042048,120]
[394480601,1763618410362,151.0,0.00042048,120]
[394480602,1763618410430,447.12259355,0.00042048,120]
[394480603,1763618410528,151.0,0.00042048,120]
[394480604,1763618410579,151.0,0.00042048,120]
[394480608,1763618410831,151.0,0.00042048,120]
[394480609,1763618410882,579.68907858,0.00042048,120]
[394480611,1763618410934,151.0,0.00042048,120]
[394480612,1763618411185,243.979857,0.00042048,120]
[394480615,1763618411517,151.0,0.00042048,120]
[394480617,1763618411866,151.0,0.00042048,120]
[394480620,1763618412110,301.83005415,0.00042048,120]
[394480621,1763618412170,151.0,0.00042048,120]
[394480623,1763618412462,151.0,0.00042048,120]
[394480624,1763618412512,500.0,0.00042048,120]
[394480626,1763618412638,325.08957682,0.00042048,30]
[394480627,1763618412769,362.41880753,0.00042048,120]
[394480629,1763618412816,216.384672,0.00042048,120]
[394480634,1763618413732,500.0,0.00042048,120]
[394480635,1763618413839,399.16597242,0.00042048,120]
[394480637,1763618413969,316.699984,0.00042048,120]
[394480641,1763618415655,470.60688527,0.00042048,120]
[394480642,1763618415704,268.89412738,0.00042048,120]
[394480644,1763618415927,152.975779,0.00042048,120]
[394480645,1763618416164,151.0,0.00042048,120]
[394480646,1763618416209,328.39047524,0.00042048,120]
[394480647,1763618416409,468.79947527,0.00042048,120]
[394480648,1763618416526,151.0,0.00042048,120]
[394480649,1763618416840,151.0,0.00042048,120]
[394480650,1763618417251,300.0,0.00042048,120]
[394480651,1763618417866,151.0,0.00042048,120]
[394480652,1763618417928,311.1,0.00042048,120]
[394480653,1763618418052,151.0,0.00042048,120]
[394480654,1763618418311,500.0,0.00042048,120]
[394480655,1763618418408,151.0,0.00042048,120]
[394480656,1763618418504,322.6107,0.00042048,120]
[394480657,1763618418567,187.69270677,0.00042048,120]
[394480658,1763618418760,151.0,0.00042048,120]
[394480659,1763618419064,151.0,0.00042048,120]
[394480660,1763618419147,334.5472959,0.00042048,120]
[394480661,1763618419406,151.0,0.00042048,120]
[394480662,1763618419801,346.92554585,0.00042048,120]
[394480663,1763618419865,196.154955,0.00042048,120]
[394480664,1763618419916,156.126985,0.00042048,120]
[394480665,1763618420527,359.76179104,0.00042048,120]
[394480670,1763618421785,156.395906,0.00042048,120]
[394480672,1763618422087,151.0,0.00042048,120]
[394480674,1763618422144,156.395906,0.00042048,120]
[394480676,1763618422379,151.0,0.00042048,120]
[394480677,1763618422426,156.395906,0.00042048,120]
[394480679,1763618422643,336.689412,0.00042048,120]
[394480680,1763618422694,151.0,0.00042048,120]
[394480681,1763618422802,156.395906,0.00042048,120]
[394480683,1763618422966,336.689412,0.00042048,120]
[394480684,1763618423016,151.0,0.00042048,120]
[394480685,1763618423063,151.0,0.00042048,120]
[394480687,1763618423212,156.395906,0.00042048,120]
[394480688,1763618423286,151.0,0.00042048,120]
[394480690,1763618423475,156.718501,0.00042048,120]
[394480691,1763618423538,336.689412,0.00042048,120]
[394480692,1763618423591,156.395906,0.00042048,120]
[394480694,1763618423647,151.0,0.00042048,120]
[394480695,1763618423810,336.689412,0.00042048,120]
[394480696,1763618423870,156.395906,0.00042048,120]
[394480698,1763618423938,151.0,0.00042048,120]
[394480700,1763618424115,156.395906,0.00042048,120]
[394480703,1763618424327,336.689412,0.00042048,120]
[394480705,1763618424395,151.0,0.00042048,120]
[394480706,1763618424512,156.395906,0.00042048,120]
[394480707,1763618424617,336.689412,0.00042048,120]
[394480709,1763618424686,151.0,0.00042048,120]
[394480710,1763618424809,156.395906,0.00042048,120]
[394480712,1763618425005,336.689412,0.00042048,120]
[394480713,1763618425088,156.395906,0.00042048,120]
[394480715,1763618425139,204.98685119,0.00042048,120]
[394480716,1763618425191,151.0,0.00042048,120]
[394480717,1763618425244,341.53333715,0.00042048,120]
[394480718,1763618425336,336.689412,0.00042048,120]
[394480720,1763618425486,156.395906,0.00042048,120]
[394480721,1763618425536,182.431783,0.00042048,120]
[394480722,1763618425686,336.689412,0.00042048,120]
[394480723,1763618425777,156.395906,0.00042048,120]
[394480724,1763618425829,500.0,0.00042048,120]
[394480725,1763618426201,564.93454937,0.00042048,120]
[394480726,1763618426257,336.689412,0.00042048,120]
[394480727,1763618426308,306.48252176,0.00042048,120]
[394480728,1763618426360,156.395906,0.00042048,120]
[394480729,1763618426418,336.689412,0.00042048,120]
[394480730,1763618426465,156.395906,0.00042048,120]
[394480731,1763618426526,151.0,0.00042048,120]
[394480732,1763618426606,250.0,0.00042048,120]
[394480733,1763618426654,336.689412,0.00042048,120]
[394480734,1763618426698,156.395906,0.00042048,120]
[394480735,1763618426763,151.0,0.00042048,120]
[394480736,1763618426810,151.0,0.00042048,120]
[394480737,1763618426954,336.689412,0.00042048,120]
[394480738,1763618427002,156.395906,0.00042048,120]
[394480739,1763618427095,151.0,0.00042048,120]
[394480740,1763618427170,151.0,0.00042048,120]
[394480741,1763618427216,250.0,0.00042048,120]
[394480742,1763618427283,336.689412,0.00042048,120]
[394480743,1763618427350,156.395906,0.00042048,120]
[394480744,1763618427395,151.0,0.00042048,120]
[394480745,1763618427467,151.0,0.00042048,120]
[394480746,1763618427513,202.7161,0.00042048,120]
[394480747,1763618427571,336.689412,0.00042048,120]
[394480749,1763618427631,156.395906,0.00042048,120]
[394480750,1763618427676,444.04428727,0.00042048,120]
[394480751,1763618427719,151.0,0.00042048,120]
[394480752,1763618427769,286.28517918,0.00042048,120]
[394480753,1763618427823,202.7161,0.00042048,120]
[394480755,1763618427878,250.0,0.00042048,120]
[394480756,1763618427941,151.0,0.00042048,120]
[394480757,1763618427996,336.689412,0.00042048,120]
[394480758,1763618428050,156.395908,0.00042048,120]
[394480759,1763618428103,151.0,0.00042048,120]
[394480761,1763618428151,202.7161,0.00042048,120]
[394480762,1763618428198,151.0,0.00042048,120]
[394480763,1763618428260,151.0,0.00042048,120]
[394480764,1763618428358,336.689412,0.00042048,120]
[394480766,1763618428407,156.046647,0.00042048,120]
[394480767,1763618428455,202.7161,0.00042048,120]
[394480768,1763618428502,250.0,0.00042048,120]
[394480769,1763618428556,349.77342751,0.00042048,120]
[394480770,1763618428606,153.753396,0.00042048,120]
[394480772,1763618428726,151.0,0.00042048,120]
[394480773,1763618428772,336.689412,0.00042048,120]
[394480774,1763618428904,151.0,0.00042048,120]
[394480775,1763618429034,202.7161,0.00042048,120]
[394480776,1763618429092,151.0,0.00042048,120]
[394480777,1763618429179,336.689412,0.00042048,120]
[394480778,1763618429233,151.0,0.00042048,120]
[394480779,1763618429337,202.7161,0.00042048,120]
[394480780,1763618429390,151.0,0.00042048,120]
[394480781,1763618429478,336.689409,0.00042048,120]
[394480782,1763618429525,207.155837,0.00042048,120]
[394480783,1763618429620,202.7161,0.00042048,120]
[394480784,1763618429680,151.0,0.00042048,120]
[394480785,1763618429917,202.7161,0.00042048,120]
[394480786,1763618430092,151.0,0.00042048,120]
[394480787,1763618430313,202.7161,0.00042048,120]
[394480788,1763618430438,151.0,0.00042048,120]
[394480789,1763618430703,202.7161,0.00042048,120]
[394480790,1763618430752,436.79064595,0.00042048,120]
[394480791,1763618430799,151.0,0.00042048,120]
[394480792,1763618430969,202.7161,0.00042048,120]
[394480794,1763618431090,151.0,0.00042048,120]
[394480795,1763618431299,202.7161,0.00042048,120]
[394480796,1763618431374,151.0,0.00042048,120]
[394480797,1763618431740,151.0,0.00042048,120]
[394480798,1763618431789,202.7161,0.00042048,120]
[394480799,1763618432026,151.0,0.00042048,120]
[394480800,1763618432090,202.7161,0.00042048,120]
[394480801,1763618432210,151.0,0.00042048,120]
[394480802,1763618432452,179.447657,0.00042048,120]
[394480803,1763618432505,202.7161,0.00042048,120]
[394480804,1763618432566,151.0,0.00042048,120]
[394480805,1763618432674,202.7161,0.00042048,120]
[394480806,1763618432802,168.80668741,0.00042048,120]
[394480807,1763618432851,151.0,0.00042048,120]
[394480808,1763618432902,276.71850999,0.00042048,120]
[394480809,1763618432952,202.7161,0.00042048,120]
[394480810,1763618433133,151.0,0.00042048,120]
[394480812,1763618433238,202.7161,0.00042048,120]
[394480813,1763618433331,152.887178,0.00042048,120]
[394480814,1763618433473,151.0,0.00042048,120]
[394480816,1763618433521,293.97565772,0.00042048,120]
[394480817,1763618433567,202.7161,0.00042048,120]
[394480818,1763618433796,151.0,0.00042048,120]
[394480820,1763618433942,202.716092,0.00042048,120]
[394480821,1763618434099,151.0,0.00042048,120]
[394480823,1763618434145,372.82797898,0.00042048,120]
[394480825,1763618434544,151.0,0.00042048,120]
[394480827,1763618434831,151.0,0.00042048,120]
[394480829,1763618435157,151.0,0.00042048,120]
[394480830,1763618435276,189.79613862,0.00042048,120]
[394480832,1763618435448,151.0,0.00042048,120]
[394480834,1763618435749,151.0,0.00042048,120]
[394480835,1763618435939,219.16198965,0.00042048,120]
[394480837,1763618436044,151.0,0.00042048,120]
[394480838,1763618436238,151.0,0.00042048,120]
[394480839,1763618436337,151.0,0.00042048,120]
[394480841,1763618436628,151.0,0.00042048,120]
[394480842,1763618436696,151.0,0.00042048,120]
[394480844,1763618436916,201.050533,0.00042048,120]
[394480845,1763618437009,168.438031,0.00042048,120]
[394480847,1763618437325,312.75874153,0.00042048,120]
[394480850,1763618437734,216.505366,0.00042048,120]
[394480851,1763618437835,501.74681962,0.00042048,120]
[394480853,1763618438006,445.71457593,0.00042048,120]
[394480854,1763618438132,216.505366,0.00042048,120]
[394480856,1763618438492,216.505366,0.00042048,120]
[394480858,1763618438851,216.505366,0.00042048,120]
[394480859,1763618439012,158.416788,0.00042048,120]
[394480861,1763618439157,216.505366,0.00042048,120]
[394480863,1763618439377,151.0,0.00042048,120]
[394480864,1763618439430,158.416788,0.00042048,120]
[394480865,1763618439528,216.505366,0.00042048,120]
[394480866,1763618439653,151.0,0.00042048,120]
[394480867,1763618439698,151.0,0.00042048,120]
[394480868,1763618439744,158.416788,0.00042048,120]
[394480869,1763618439839,216.505366,0.00042048,120]
[394480870,1763618440025,157.403028,0.00042048,120]
[394480871,1763618440071,151.0,0.00042048,120]
[394480872,1763618440118,158.416788,0.00042048,120]
[394480873,1763618440159,400.0,0.00042048,120]
[394480874,1763618440201,216.505366,0.00042048,120]
[394480875,1763618440307,151.0,0.00042048,120]
[394480876,1763618440430,158.416788,0.00042048,120]
[394480877,1763618440488,390.15263178,0.00042048,120]
[394480878,1763618440536,216.505366,0.00042048,120]
[394480879,1763618440598,151.0,0.00042048,120]
[394480880,1763618440948,158.416788,0.00042048,120]
[394480881,1763618440997,216.505366,0.00042048,120]
[394480882,1763618441048,296.846657,0.00042048,120]
[394480883,1763618441131,216.505366,0.00042048,120]
[394480884,1763618441176,158.416788,0.00042048,120]
[394480885,1763618441456,216.505366,0.00042048,120]
[394480886,1763618441657,158.416788,0.00042048,120]
[394480887,1763618441771,216.505366,0.00042048,120]
[394480888,1763618441849,158.416788,0.00042048,120]
[394480889,1763618442071,216.505366,0.00042048,120]
[394480890,1763618442184,158.416788,0.00042048,120]
[394480891,1763618442317,500.0,0.00042048,120]
[394480892,1763618442374,216.505366,0.00042048,120]
[394480893,1763618442465,158.416788,0.00042048,120]
[394480894,1763618442561,311.89553351,0.00042048,120]
[394480895,1763618442763,216.505366,0.00042048,120]
[394480896,1763618442817,158.416788,0.00042048,120]
[394480897,1763618443122,158.416788,0.00042048,120]
[394480898,1763618443181,216.505366,0.00042048,120]
[394480899,1763618443412,158.416788,0.00042048,120]
[394480900,1763618443473,216.505366,0.00042048,120]
[394480901,1763618443557,236.1600481,0.00042048,120]
[394480902,1763618443727,283.10812009,0.00042048,120]
[394480903,1763618443783,158.416788,0.00042048,120]
[394480904,1763618443844,216.505366,0.00042048,120]
[394480905,1763618444118,158.416788,0.00042048,120]
[394480906,1763618444194,216.505365,0.00042048,120]
[394480907,1763618444431,158.416788,0.00042048,120]
[394480908,1763618444815,158.416788,0.00042048,120]
[394480909,1763618445124,158.416788,0.00042048,120]
[394480910,1763618445195,151.0,0.00042048,120]
[394480911,1763618445447,158.416796,0.00042048,120]
[394480912,1763618445491,500.0,0.00042048,120]
[394480913,1763618445538,151.0,0.00042048,120]
[394480914,1763618445708,317.0910323,0.00042048,120]
[394480915,1763618445796,151.0,0.00042048,120]
[394480916,1763618446093,151.0,0.00042048,120]
[394480917,1763618446399,151.0,0.00042048,120]
[394480918,1763618446688,151.0,0.00042048,120]
[394480919,1763618446976,151.0,0.00042048,120]
[394480920,1763618447290,151.0,0.00042048,120]
[394480921,1763618447690,151.0,0.00042048,120]
[394480923,1763618448071,151.0,0.00042048,120]
[394480925,1763618448371,151.0,0.00042048,120]
[394480927,1763618448683,151.0,0.00042048,120]
[394480930,1763618448968,151.0,0.00042048,120]
[394480934,1763618449334,260.912376,0.00042048,120]
[394480949,1763618450937,437.87138928,0.00042048,120]
[394480951,1763618451116,151.0,0.00042048,120]
[394480953,1763618451304,151.0,0.00042048,120]
[394480956,1763618451662,151.0,0.00042048,120]
[394480957,1763618451803,423.21361773,0.00042048,120]
[394480959,1763618451859,151.0,0.00042048,120]
[394480960,1763618451991,151.0,0.00042048,120]
[394480962,1763618452149,151.0,0.00042048,120]
[394480963,1763618452319,151.0,0.00042048,120]
[394480965,1763618452438,151.0,0.00042048,120]
[394480967,1763618452649,151.0,0.00042048,120]
[394480968,1763618452717,290.986897,0.00042048,120]
[394480969,1763618452767,151.0,0.00042048,120]
[394480971,1763618452954,151.0,0.00042048,120]
[394480972,1763618453056,151.0,0.00042048,120]
[394480974,1763618453112,290.986897,0.00042048,120]
[394480975,1763618453322,151.0,0.00042048,120]
[394480977,1763618453571,151.0,0.00042048,120]
[394480979,1763618453630,290.986897,0.00042048,120]
[394480980,1763618453687,151.0,0.00042048,120]
[394480981,1763618453752,290.986897,0.00042048,120]
[394480982,1763618453805,151.0,0.00042048,120]
[394480983,1763618453965,151.0,0.00042048,120]
[394480984,1763618454109,163.052046,0.00042048,120]